fUSD/lending_fUSD_20251127
["ID","MTS","AMOUNT","RATE_DAILY","PERIOD"]
[394988582,1764267044245,-500.0,0.000179,2]
[394988583,1764267044254,-500.0,0.000179,2]
[394988584,1764267044263,-192.37994214,0.000179,2]
[394988585,1764267044274,-500.0,0.00017972,2]
[394988586,1764267044283,-507.05784267,0.00017973,2]
[394988587,1764267044293,-161.98179923,0.00017973,2]
[394988588,1764267044303,-500.0,0.00017973,2]
[394988589,1764267044312,-500.0,0.00017973,2]
[394988590,1764267044321,-500.0,0.00017973,2]
[394988591,1764267044331,-500.0,0.00017973,2]
[394988592,1764267044341,-500.0,0.00017973,2]
[394988593,1764267044350,-231.63969334,0.00017973,2]
[394988594,1764267044359,-167.22168454,0.00017973,2]
[394988595,1764267044368,-500.71814226,0.00017973,2]
[394988596,1764267044378,-500.0,0.00017973,2]
[394988597,1764267044387,-500.0,0.00017989,2]
[394988598,1764267044397,-600.0,0.00017989,2]
[394988599,1764267044407,-500.0,0.00017989,2]
[394988600,1764267044416,-500.0,0.00017989,2]
[394988601,1764267044425,-563.62196302,0.00017989,2]
[394988602,1764267044435,-141.10828293,0.00017989,2]
[394988610,1764267046143,-350.0,0.00017989,2]
[394988612,1764267046408,-498.89171707,0.00017989,2]
[394988613,1764267046417,-28.35220278,0.00017989,2]
[394988615,1764267046429,-121.64779722,0.00017989,2]
[394988616,1764267046439,-150.0,0.00017989,2]
[394988617,1764267046448,-93.30220278,0.00017989,2]
[394988631,1764267472650,17130.9384,0.00025,120]
[394988651,1764267630191,150.86,0.00019178,30]
[394988693,1764268232264,-1238.93284746,0.00015581,2]
[394988694,1764268232275,-965.26616309,0.00015581,2]
[394988695,1764268232285,-184.61086334,0.00015601,2]
[394988696,1764268232294,-151.0,0.00015661,2]
[394988697,1764268232303,-300.0,0.00015663,2]
[394988698,1764268232313,-1200.0,0.00015663,2]
[394988699,1764268232322,-300.0,0.00015663,2]
[394988700,1764268232332,-255.0,0.00015663,2]
[394988701,1764268232343,-176.92099097,0.00015663,2]
[394988702,1764268232353,-241.72121094,0.00015663,2]
[394988703,1764268232363,-500.0,0.00015663,2]
[394988704,1764268232373,-500.0,0.00015663,2]
[394988705,1764268232386,-302.79913907,0.00015663,2]
[394988709,1764268232578,-195.0,0.00015664,2]
[394988711,1764268232588,-2164.6304,0.00015664,2]
[394988713,1764268232598,-5600.91971718,0.00015664,2]
[394988716,1764268232609,-1060.77904205,0.00015664,2]
[394988718,1764268232620,-556.64674786,0.00015664,2]
[394988720,1764268232631,-298.4903234,0.00015664,2]
[394988722,1764268232642,-877.20125783,0.00015664,2]
[394988724,1764268232653,-346.84803172,0.00015664,2]
[394988727,1764268232664,-5857.18947571,0.00015664,2]
[394988729,1764268232675,-861.91411257,0.00015664,2]
[394988732,1764268232694,-1800.0,0.00015664,2]
[394988734,1764268232705,-344.17171453,0.00015664,2]
[394988736,1764268232715,-301.0,0.00015664,2]
[394988744,1764268232746,-480.71,0.00015663,2]
[394988747,1764268232757,-19.29,0.00015663,2]
[394988750,1764268232767,-59871.85755626,0.00015664,2]
[394988758,1764268238293,-438.43966824,0.00015663,2]
[394988759,1764268238303,-500.0,0.00015663,2]
[394988760,1764268238312,-459.80188724,0.00015664,2]
[394988773,1764268240225,-1726.20261433,0.00015664,2]
[394988774,1764268240236,-776.90309751,0.00015664,2]
[394988779,1764268240279,-1830.27895656,0.00015664,2]
[394988781,1764268240290,-817.02576082,0.00015664,2]
[394988782,1764268240302,-1404.0,0.00015664,2]
[394988783,1764268240335,-356.906,0.00015664,2]
[394988784,1764268240390,-8528.0,0.00015664,2]
[394988785,1764268240447,-2610.68159127,0.00015664,2]
[394988786,1764268240459,-4181.99995258,0.00015664,2]
[394988790,1764268243889,-6971.25614595,0.00015664,2]
[394988791,1764268243947,-316.16713008,0.00015664,2]
[394988792,1764268243959,-478.70511354,0.00015664,2]
[394988793,1764268244002,-19744.0886778,0.00015664,2]
[394988794,1764268244013,-1717.17989054,0.00015664,2]
[394988801,1764268246309,-311640.26920267,0.00015664,2]
[394988802,1764268246319,-500.0,0.00015673,2]
[394988803,1764268246329,-500.0,0.00015673,2]
[394988804,1764268246338,-500.0,0.00015673,2]
[394988805,1764268246348,-262.07429092,0.00015681,2]
[394988806,1764268246358,-250.0,0.00015701,2]
[394988807,1764268246367,-2204.19901052,0.00015839,2]
[394988808,1764268246377,-166.66,0.00015977,2]
[394988809,1764268246387,-151.0,0.00015997,2]
[394988810,1764268246396,-5957.97489835,0.00016,4]
[394988811,1764268246409,-4042.02510165,0.00016,4]
[394988812,1764268246418,-43178.03917671,0.00016,4]
[394988813,1764268246428,-2204.19901052,0.00016096,2]
[394988814,1764268246437,-568.31819586,0.00016173,2]
[394988815,1764268246447,-502.30829307,0.00016173,2]
[394988816,1764268246456,-500.0,0.00016173,2]
[394988817,1764268246465,-500.0,0.00016173,2]
[394988818,1764268246475,-500.0,0.00016173,2]
[394988819,1764268246484,-500.0,0.00016173,2]
[394988820,1764268246494,-500.0,0.00016173,2]
[394988821,1764268246504,-500.0,0.00016173,2]
[394988822,1764268246513,-500.0,0.00016173,2]
[394988823,1764268246522,-343.46508367,0.00016173,2]
[394988824,1764268246535,-150.0,0.000162,2]
[394988825,1764268246545,-150.00000001,0.000162,2]
[394988826,1764268246554,-150.0,0.000162,2]
[394988827,1764268246564,-150.00000001,0.000162,2]
[394988828,1764268246576,-159.34174515,0.000162,2]
[394988829,1764268246585,-243371.01797372,0.000162,5]
[394988830,1764268246596,-151.0,0.000162,2]
[394988831,1764268246605,-166.66,0.00016314,2]
[394988832,1764268246615,-150.0,0.00016335,2]
[394988833,1764268246624,-2204.19901052,0.00016354,2]
[394988834,1764268246633,-1000.0,0.00016405,2]
[394988835,1764268246645,-614.45,0.00016438,2]
[394988836,1764268246654,-5163.09,0.00016438,2]
[394988837,1764268246663,-483.14,0.00016486,2]
[394988838,1764268246672,-3802.92,0.00016505,2]
[394988839,1764268246681,-2204.19901052,0.00016612,2]
[394988840,1764268246690,-166.66,0.0001665,2]
[394988841,1764268246699,-610.69678692,0.00016721,2]
[394988842,1764268246709,-1000.0,0.00016721,2]
[394988843,1764268246718,-1000.0,0.00016721,2]
[394988844,1764268246727,-1000.0,0.00016721,2]
[394988845,1764268246737,-1000.0,0.00016721,2]
[394988846,1764268246746,-219.62,0.00016818,2]
[394988847,1764268246755,-427.24637793,0.00016839,2]
[394988848,1764268246764,-214.78,0.00016859,2]
[394988849,1764268246773,-2204.19901052,0.00016869,2]
[394988850,1764268246783,-2000.0,0.00016939,2]
[394988851,1764268246792,-166.66,0.00016986,2]
[394988852,1764268246801,-165.04,0.0001701,2]
[394988853,1764268246811,-2204.19901052,0.00017127,2]
[394988854,1764268246821,-420.0,0.00017131,2]
[394988855,1764268246831,-420.0,0.00017131,2]
[394988856,1764268246840,-1680.0,0.00017217,2]
[394988857,1764268246849,-300.0,0.00017229,2]
[394988858,1764268246858,-195.0,0.00017229,2]
[394988859,1764268246868,-300.0,0.0001723,2]
[394988861,1764268246878,-300.0,0.0001723,2]
[394988863,1764268246886,-300.0,0.0001723,2]
[394988864,1764268246896,-300.0,0.0001723,2]
[394988866,1764268246908,-1500.0,0.00017268,2]
[394988867,1764268246917,-950.85837897,0.00017268,2]
[394988868,1764268246926,-1500.0,0.00017268,2]
[394988869,1764268246935,-1500.0,0.00017268,2]
[394988870,1764268246944,-166.66,0.00017323,2]
[394988871,1764268246953,-2204.19901052,0.00017385,2]
[394988872,1764268246961,-222.65612674,0.0001758,2]
[394988873,1764268246970,-168.0,0.00017603,2]
[394988874,1764268246979,-2204.19901052,0.00017642,2]
[394988875,1764268246989,-166.66,0.00017659,2]
[394988876,1764268246999,-702.2,0.000177,2]
[394988877,1764268247008,-9999.99,0.00017728,2]
[394988878,1764268247017,-150.99,0.00017728,2]
[394988879,1764268247026,-422.57,0.00017728,2]
[394988880,1764268247036,-4560.85,0.00017728,2]
[394988881,1764268247045,-36886.95,0.00017728,2]
[394988882,1764268247054,-151.0,0.00017728,2]
[394988883,1764268247063,-151.0,0.0001773,2]
[394988884,1764268247073,-151.0,0.0001773,2]
[394988885,1764268247082,-287.483669,0.0001773,2]
[394988886,1764268247091,-2722.41777585,0.0001773,2]
[394988887,1764268247100,-393.874,0.00017758,2]
[394988888,1764268247109,-2500.0,0.000178,2]
[394988889,1764268247118,-2000.0,0.00017816,2]
[394988890,1764268247127,-2000.0,0.00017816,2]
[394988891,1764268247136,-2000.0,0.00017816,2]
[394988892,1764268247146,-150.0,0.00017833,2]
[394988893,1764268247155,-150.0,0.000179,2]
[394988894,1764268247164,-983.96999156,0.000179,2]
[394988895,1764268247174,-2204.19901052,0.000179,2]
[394988896,1764268247184,-6228.3471061,0.00017911,2]
[394988897,1764268247193,-1963.0421388,0.00017911,2]
[394988898,1764268247203,-1486.0039318,0.00017911,2]
[394988899,1764268247212,-49190.6681806,0.00017911,2]
[394988900,1764268247222,-500.0,0.00017973,2]
[394988901,1764268247233,-494.11980425,0.00017973,2]
[394988902,1764268247242,-1247.30118363,0.00017989,2]
[394988903,1764268247252,-200.0,0.00017989,2]
[394988904,1764268247263,-1246.65899,0.00017989,2]
[394988905,1764268247273,-949.0,0.00017989,2]
[394988906,1764268247282,-150.0,0.00017989,2]
[394988907,1764268247295,-150.0,0.00017989,2]
[394988908,1764268247305,-150.0,0.00017989,2]
[394988909,1764268247314,-150.0,0.00017989,2]
[394988910,1764268247323,-150.0,0.00017989,2]
[394988911,1764268247332,-150.0,0.00017989,2]
[394988912,1764268247341,-218.09228248,0.00017989,2]
[394988913,1764268247351,-250.0,0.00017989,2]
[394988914,1764268247360,-150.0,0.00017989,2]
[394988915,1764268247369,-150.0,0.00017989,2]
[394988916,1764268247379,-500.0,0.00017989,2]
[394988917,1764268247388,-150.0,0.00017989,2]
[394988918,1764268247397,-213.06815573,0.0001799,2]
[394988919,1764268247407,-500.0,0.00017999,2]
[394988920,1764268247417,-500.0,0.00017999,2]
[394988921,1764268247426,-500.0,0.00017999,2]
[394988922,1764268247436,-500.0,0.00017999,2]
[394988923,1764268247445,-500.0,0.00017999,2]
[394988924,1764268247458,-500.0,0.00017999,2]
[394988925,1764268247467,-1314.0,0.00018,2]
[394988926,1764268247477,-65907.52286493,0.00018,2]
[394988927,1764268247489,-7457.39530165,0.00018,2]
[394988928,1764268247542,-6491.47608949,0.00018,2]
[394988963,1764269000213,157.74,8.446e-05,2]
[394988964,1764269000420,157.74,8.943e-05,2]
[394988965,1764269000728,157.74,9.44e-05,2]
[394988966,1764269000955,157.74,9.937e-05,2]
[394988967,1764269001170,157.74,0.00010433,2]
[394988968,1764269001400,157.74,0.0001093,2]
[394988969,1764269001598,157.74,0.00011427,2]
[394988970,1764269001813,157.74,0.00011924,2]
[394988971,1764269002004,157.74,0.00012421,2]
[394988972,1764269002215,157.74,0.00012918,2]
[394988973,1764269002432,157.74,0.00013414,2]
[394988974,1764269002641,157.74,0.00013911,2]
[394988975,1764269002873,157.74,0.00014408,2]
[394988976,1764269102759,161.29,0.00012845,2]
[394989004,1764269431350,-157.74,0.00014905,2]
[394989006,1764269431359,-211.0,0.00014905,2]
[394989008,1764269431369,-195.0,0.00015153,2]
[394989010,1764269431378,-66.57,0.00015402,2]
[394989013,1764269431389,-91.17,0.00015402,2]
[394989015,1764269431400,-300.0,0.00015563,2]
[394989017,1764269431411,-300.0,0.00015563,2]
[394989019,1764269431425,-1200.0,0.00015563,2]
[394989021,1764269431435,-1250.0,0.00015564,2]
[394989023,1764269431445,-1250.0,0.00015564,2]
[394989025,1764269431458,-1749.46914911,0.00015564,2]
[394989027,1764269431473,-400.23374087,0.00015564,2]
[394989028,1764269431484,-348.22573392,0.00015564,2]
[394989034,1764269437279,-901.89899449,0.00015564,2]
[394989036,1764269437386,-4100.14377556,0.00015564,2]
[394989037,1764269437437,-896.94,0.00015564,2]
[394989038,1764269437493,-14798.59632085,0.00015564,2]
[394989039,1764269437547,-8097.84075887,0.00015564,2]
[394989042,1764269439436,-4868.99132633,0.00015564,2]
[394989043,1764269439445,-2562.37,0.00015832,2]
[394989044,1764269439454,-157.74,0.00015898,2]
[394989045,1764269439465,-378.32078194,0.000159,2]
[394989046,1764269439474,-200.0,0.00015946,2]
[394989047,1764269439483,-337.67446388,0.00015973,2]
[394989048,1764269439493,-378.32078193,0.00015995,2]
[394989049,1764269439503,-500.0,0.00015999,2]
[394989050,1764269439512,-169.20484766,0.00015999,2]
[394989051,1764269439522,-411.95939735,0.00015999,2]
[394989052,1764269439531,-500.0,0.00015999,2]
[394989053,1764269439540,-500.0,0.00015999,2]
[394989054,1764269439550,-500.0,0.00015999,2]
[394989055,1764269439560,-500.0,0.00015999,2]
[394989056,1764269439571,-500.0,0.00015999,2]
[394989057,1764269439581,-343.84396683,0.00015999,2]
[394989058,1764269439590,-425.83311324,0.00015999,2]
[394989059,1764269439601,-74.16688676,0.00015999,2]
[394989060,1764269439611,-348.72534568,0.00015999,2]
[394989061,1764269439622,-151.27465432,0.00015999,2]
[394989062,1764269439632,-158.71128242,0.00015999,2]
[394989063,1764269439647,-341.28871758,0.00015999,2]
[394989064,1764269439657,-500.0,0.00015999,2]
[394989065,1764269439667,-13.7110193,0.00016,2]
[394989066,1764269439679,-4793.1659035,0.00016,2]
[394989067,1764269439808,-2708.93170042,0.00016,2]
[394989097,1764269445410,-12606.10942379,0.00015564,2]
[394989098,1764269445517,-1661.0,0.00015564,2]
[394989099,1764269445679,-760.32451379,0.00015564,2]
[394989102,1764269627300,800.87,0.00013699,2]
[394989136,1764270307665,150.0,0.000144,2]
[394989137,1764270307886,150.0,0.000144,2]
[394989138,1764270308136,150.0,0.000144,2]
[394989139,1764270312149,150.0,0.000144,2]
[394989140,1764270312214,150.0,0.00014578,2]
[394989141,1764270316139,150.0,0.000144,2]
[394989142,1764270316539,150.0,0.000144,2]
[394989143,1764270326882,292.50808609,0.000144,2]
[394989144,1764270329397,150.0,0.000144,2]
[394989145,1764270330927,-150.0,0.00014756,2]
[394989146,1764270372502,5523.0,0.000155,5]
[394989147,1764270389264,166.66,0.00013711,2]
[394989148,1764270389477,166.66,0.00014,2]
[394989149,1764270389679,166.66,0.00014289,2]
[394989150,1764270389880,166.66,0.00014577,2]
[394989151,1764270404226,5523.0,0.000155,5]
[394989152,1764270467053,1000.0,0.00014331,2]
[394989153,1764270496691,5523.0,0.000153,5]
[394989168,1764270631488,-259.39015822,0.00014783,2]
[394989169,1764270631499,-4384.19984178,0.00014783,2]
[394989170,1764270631509,-1349.84,0.00014788,2]
[394989171,1764270631518,-150.0,0.000148,2]
[394989172,1764270631528,-150.0,0.000148,2]
[394989173,1764270631537,-150.0,0.000148,2]
[394989174,1764270631546,-300.0,0.00014808,2]
[394989175,1764270631555,-1200.0,0.00014808,2]
[394989176,1764270631564,-1124.0,0.00014809,2]
[394989177,1764270631574,-3380.2,0.0001481,2]
[394989178,1764270631583,-166.66,0.00014866,2]
[394989179,1764270631593,-150.0,0.00014933,2]
[394989180,1764270631602,-150.0,0.00014933,2]
[394989181,1764270631611,-1917.17,0.00015043,2]
[394989182,1764270631620,-150.0,0.00015111,2]
[394989183,1764270631629,-166.66,0.00015155,2]
[394989184,1764270631638,-166.66,0.00015169,2]
[394989185,1764270631648,-150.0,0.000152,2]
[394989186,1764270631658,-150.0,0.000152,2]
[394989187,1764270631670,-150.0,0.000152,2]
[394989188,1764270631679,-150.0,0.000152,2]
[394989189,1764270631688,-150.0,0.00015289,2]
[394989190,1764270631698,-319.10774003,0.00015311,2]
[394989191,1764270631707,-192.97090635,0.00015323,2]
[394989192,1764270631716,-167.47082242,0.00015341,2]
[394989193,1764270631726,-1511.1954691,0.00015354,2]
[394989194,1764270631737,-625.0184482,0.00015354,2]
[394989195,1764270631748,-574.9815518,0.00015354,2]
[394989204,1764270637462,-39.8045309,0.00015354,2]
[394989205,1764270637471,-151.0,0.00015361,2]
[394989206,1764270637480,-300.0,0.00015362,2]
[394989207,1764270637490,-500.0,0.00015363,2]
[394989208,1764270637499,-182.40985118,0.00015363,2]
[394989209,1764270637508,-468.8924229,0.00015363,2]
[394989210,1764270637518,-469.48451048,0.00015363,2]
[394989211,1764270637526,-500.0,0.00015363,2]
[394989212,1764270637536,-500.0,0.00015363,2]
[394989213,1764270637545,-500.0,0.00015363,2]
[394989214,1764270637554,-500.0,0.00015363,2]
[394989215,1764270637564,-500.0,0.00015363,2]
[394989216,1764270637574,-500.0,0.00015363,2]
[394989217,1764270637583,-500.0,0.00015363,2]
[394989218,1764270637592,-500.0,0.00015363,2]
[394989219,1764270637601,-500.0,0.00015363,2]
[394989220,1764270637610,-500.0,0.00015363,2]
[394989221,1764270637619,-500.0,0.00015363,2]
[394989222,1764270637629,-500.0,0.00015363,2]
[394989223,1764270637639,-500.0,0.00015363,2]
[394989224,1764270637648,-500.0,0.00015363,2]
[394989225,1764270637657,-500.0,0.00015363,2]
[394989226,1764270637666,-500.0,0.00015363,2]
[394989227,1764270637675,-500.0,0.00015363,2]
[394989228,1764270637685,-500.0,0.00015363,2]
[394989229,1764270637694,-500.0,0.00015363,2]
[394989230,1764270637703,-500.0,0.00015363,2]
[394989231,1764270637712,-500.0,0.00015363,2]
[394989232,1764270637721,-500.0,0.00015363,2]
[394989234,1764270637731,-500.0,0.00015363,2]
[394989235,1764270637740,-500.0,0.00015363,2]
[394989236,1764270637749,-500.0,0.00015363,2]
[394989237,1764270637759,-500.0,0.00015363,2]
[394989238,1764270637768,-500.0,0.00015363,2]
[394989239,1764270637782,-500.0,0.00015363,2]
[394989240,1764270637791,-500.0,0.00015363,2]
[394989241,1764270637968,-500.0,0.00015363,2]
[394989242,1764270637979,-500.0,0.00015363,2]
[394989243,1764270637988,-500.0,0.00015363,2]
[394989244,1764270637999,-500.0,0.00015363,2]
[394989245,1764270638010,-500.0,0.00015363,2]
[394989246,1764270638021,-500.0,0.00015363,2]
[394989247,1764270638031,-500.0,0.00015363,2]
[394989248,1764270638041,-500.0,0.00015363,2]
[394989249,1764270638050,-500.0,0.00015363,2]
[394989250,1764270638061,-500.0,0.00015363,2]
[394989251,1764270638071,-229.46105772,0.00015363,2]
[394989252,1764270638081,-500.0,0.00015363,2]
[394989253,1764270638090,-500.0,0.00015363,2]
[394989254,1764270638100,-500.0,0.00015363,2]
[394989255,1764270638110,-500.0,0.00015363,2]
[394989256,1764270638119,-500.0,0.00015363,2]
[394989257,1764270638128,-500.0,0.00015363,2]
[394989258,1764270638138,-300.0,0.00015363,2]
[394989259,1764270638147,-1218.66618345,0.00015364,2]
[394989260,1764270638158,-760000.0,0.00015364,2]
[394989261,1764270638167,-500.0,0.00015373,2]
[394989262,1764270638177,-500.0,0.00015373,2]
[394989263,1764270638187,-500.0,0.00015373,2]
[394989264,1764270638197,-500.0,0.00015373,2]
[394989265,1764270638207,-617.86212032,0.00015373,2]
[394989266,1764270638217,-500.0,0.00015373,2]
[394989267,1764270638227,-171.28775345,0.00015373,2]
[394989268,1764270638237,-500.0,0.00015373,2]
[394989269,1764270638247,-500.0,0.00015373,2]
[394989270,1764270638257,-500.0,0.00015373,2]
[394989271,1764270638267,-622.52786237,0.00015373,2]
[394989272,1764270638277,-500.0,0.00015373,2]
[394989273,1764270638286,-500.0,0.00015373,2]
[394989274,1764270638295,-298.0023857,0.00015373,2]
[394989275,1764270638305,-500.0,0.00015373,2]
[394989276,1764270638314,-349.43238788,0.00015441,2]
[394989277,1764270638324,-167.4708224,0.00015453,2]
[394989278,1764270638333,-151.0,0.00015461,2]
[394989279,1764270638343,-151.0,0.00015461,2]
[394989280,1764270638353,-1684.32607434,0.00015463,2]
[394989281,1764270638362,-1000.0,0.00015463,2]
[394989282,1764270638372,-235.1888,0.00015464,2]
[394989284,1764270638382,-280.7424,0.00015464,2]
[394989285,1764270638391,-4085.6031,0.00015464,2]
[394989286,1764270638401,-88507.5826,0.00015464,2]
[394989287,1764270638410,-6667.1886,0.00015464,2]
[394989288,1764270638419,-150.0,0.00015467,2]
[394989289,1764270638429,-150.0,0.00015467,2]
[394989290,1764270638438,-150.0,0.000155,2]
[394989291,1764270638447,-1684.32607429,0.00015512,2]
[394989292,1764270638456,-6752.0,0.00015534,2]
[394989293,1764270638466,-151.0,0.00015554,2]
[394989294,1764270638476,-1684.32607429,0.0001556,2]
[394989295,1764270638485,-858.69,0.00015563,2]
[394989296,1764270638495,-167.4708224,0.00015565,2]
[394989297,1764270638504,-501.56205241,0.00015573,2]
[394989298,1764270638513,-500.0,0.00015573,2]
[394989299,1764270638523,-171.47967016,0.00015573,2]
[394989300,1764270638532,-500.0,0.00015573,2]
[394989301,1764270638542,-500.0,0.00015573,2]
[394989302,1764270638551,-500.0,0.00015573,2]
[394989303,1764270638561,-12581.88,0.00015585,2]
[394989304,1764270638570,-150.0,0.000156,2]
[394989305,1764270638580,-150.0,0.000156,2]
[394989306,1764270638590,-150.0,0.000156,2]
[394989307,1764270638600,-1684.32607429,0.00015609,2]
[394989308,1764270638610,-1218.66618344,0.00015632,2]
[394989309,1764270638620,-222.65612674,0.00015632,2]
[394989310,1764270638629,-150.0,0.00015634,2]
[394989311,1764270638638,-150.0,0.00015644,2]
[394989312,1764270638648,-170.61,0.00015652,2]
[394989313,1764270638658,-1684.32607429,0.00015657,2]
[394989314,1764270638668,-166.66,0.0001567,2]
[394989315,1764270638677,-167.4708224,0.00015676,2]
[394989316,1764270638686,-200.0,0.00015693,2]
[394989317,1764270638696,-1684.32607429,0.00015706,2]
[394989318,1764270638706,-177.05,0.00015748,2]
[394989319,1764270638716,-1684.32607429,0.00015754,2]
[394989320,1764270638726,-167.4708224,0.00015788,2]
[394989321,1764270638736,-1684.32607429,0.00015803,2]
[394989322,1764270638746,-1442.81918711,0.00015804,2]
[394989323,1764270638755,-150.0,0.00015822,2]
[394989324,1764270638764,-858.69,0.00015837,2]
[394989325,1764270638778,-1224.59847,0.0001584,2]
[394989326,1764270638788,-1684.32607429,0.00015851,2]
[394989327,1764270638798,-151.0,0.00015897,2]
[394989328,1764270638807,-2227.79207945,0.00015898,2]
[394989329,1764270638818,-495.04936418,0.000159,2]
[394989330,1764270638827,-35170.48767546,0.000159,2]
[394989331,1764270638837,-1684.32607429,0.000159,2]
[394989332,1764270638847,-238.19135093,0.000159,2]
[394989333,1764270638858,-167.4708224,0.000159,2]
[394989334,1764270638867,-362.52238698,0.000159,2]
[394989335,1764270638877,-151.0,0.000159,2]
[394989336,1764270638887,-1218.66618344,0.000159,2]
[394989337,1764270638896,-362.52238698,0.000159,2]
[394989338,1764270638906,-268.82015462,0.000159,2]
[394989339,1764270638916,-151.0,0.000159,2]
[394989340,1764270638927,-151.0,0.000159,2]
[394989341,1764270638937,-155.793313,0.000159,2]
[394989342,1764270638947,-500.0,0.00015921,2]
[394989343,1764270638956,-761.43962235,0.00015921,2]
[394989344,1764270638965,-503.31842824,0.00015921,2]
[394989345,1764270638976,-1000.0,0.00015921,2]
[394989346,1764270638985,-294.93102063,0.00015921,2]
[394989347,1764270638995,-501.39369144,0.00015921,2]
[394989348,1764270639006,-1000.0,0.00015921,2]
[394989349,1764270639015,-305.6883248,0.00015921,2]
[394989350,1764270639025,-1000.0,0.00015921,2]
[394989351,1764270639034,-1000.0,0.00015921,2]
[394989352,1764270639044,-6086.0,0.00015973,2]
[394989353,1764270639054,-500.0,0.00015973,2]
[394989354,1764270639064,-500.0,0.00015973,2]
[394989355,1764270639074,-510.85305174,0.00015973,2]
[394989356,1764270639084,-501.11803321,0.00015973,2]
[394989357,1764270639095,-500.0,0.00015973,2]
[394989358,1764270639105,-500.0,0.00015973,2]
[394989359,1764270639115,-500.0,0.00015973,2]
[394989360,1764270639125,-502.26767728,0.00015973,2]
[394989361,1764270639134,-175.83597508,0.00015973,2]
[394989362,1764270639143,-500.0,0.00015973,2]
[394989363,1764270639153,-500.0,0.00015973,2]
[394989364,1764270639163,-501.90512962,0.00015973,2]
[394989365,1764270639172,-500.0,0.00015973,2]
[394989366,1764270639182,-500.0,0.00015973,2]
[394989367,1764270639192,-500.0,0.00015973,2]
[394989368,1764270639201,-500.0,0.00015973,2]
[394989369,1764270639210,-500.0,0.00015973,2]
[394989370,1764270639221,-500.0,0.00015973,2]
[394989371,1764270639231,-1265.75635991,0.0001599,2]
[394989372,1764270639241,-1265.75635991,0.0001599,2]
[394989373,1764270639250,-1265.75635991,0.0001599,2]
[394989374,1764270639260,-1304.90558406,0.00015999,5]
[394989375,1764270639270,-500.0,0.00015999,2]
[394989376,1764270639279,-500.0,0.00015999,2]
[394989377,1764270639288,-500.0,0.00015999,2]
[394989378,1764270639298,-500.0,0.00015999,2]
[394989379,1764270639307,-500.0,0.00015999,2]
[394989380,1764270639317,-500.0,0.00015999,2]
[394989381,1764270639327,-331.0821075,0.00015999,2]
[394989382,1764270639336,-186.63185936,0.00015999,5]
[394989383,1764270639345,-227.89828506,0.00016,2]
[394989384,1764270639354,-150.0,0.00016,2]
[394989385,1764270639362,-247.8255487,0.00016,2]
[394989386,1764270639371,-229.16977395,0.00016,2]
[394989387,1764270639381,-158.27867006,0.00016,2]
[394989388,1764270639391,-227.44220096,0.00016,2]
[394989389,1764270639400,-10573116.28776703,0.00016,2]
[394989390,1764270639413,-392.09380723,0.00016,2]
[394989391,1764270639424,-45908.68511261,0.00016,2]
[394989392,1764270639447,-18419.96639999,0.00016,2]
[394989393,1764270639458,-10490.99234095,0.00016,2]
[394989399,1764270639669,-804.72743334,0.00016,2]
[394989400,1764270639771,-3722.95533491,0.00016,2]
[394989409,1764270643284,-349.0,0.00016,2]
[394989410,1764270643296,-1690.31,0.00016,2]